fUSD/lending_fUSD_20250611
["ID","MTS","AMOUNT","RATE_DAILY","PERIOD"]
[365396843,1749651039505,-12500.0,0.0001963,2]
[365396844,1749651039514,-10344.61352198,0.0001963,2]
[365396845,1749651039523,-10671.70059322,0.00019649,2]
[365396846,1749651039533,-167.54192093,0.00019665,2]
[365396847,1749651039543,-296.0,0.00019669,2]
[365396848,1749651039553,-10671.70059322,0.00019691,2]
[365396850,1749651039562,-413.94,0.00019694,2]
[365396852,1749651039572,-824.249026,0.000197,2]
[365396854,1749651039582,-8055.1769,0.000197,2]
[365396856,1749651039591,-500.0,0.0001971,2]
[365396858,1749651039601,-171.07983862,0.00019722,2]
[365396860,1749651039611,-156.587,0.00019726,2]
[365396862,1749651039620,-225.58660965,0.00019728,2]
[365396864,1749651039630,-10671.70059322,0.00019732,2]
[365396866,1749651039641,-679.5601,0.0001974,2]
[365396868,1749651039651,-211.0,0.0001975,2]
[365396870,1749651039660,-212.0,0.0001975,2]
[365396872,1749651039670,-171.07983861,0.00019752,2]
[365396874,1749651039679,-162.66484013,0.00019769,2]
[365396876,1749651039689,-10671.70059322,0.00019774,2]
[365396879,1749651039698,-171.07983861,0.00019781,2]
[365396882,1749651039709,-167.54192093,0.00019783,2]
[365396885,1749651039725,-296.0,0.00019787,2]
[365396888,1749651039735,-500.0,0.00019798,2]
[365396891,1749651039744,-500.0,0.00019798,2]
[365396894,1749651039754,-486.05137446,0.00019798,2]
[365396897,1749651039763,-243.57342616,0.00019798,2]
[365396900,1749651039773,-500.0,0.00019798,2]
[365396903,1749651039782,-500.0,0.00019798,2]
[365396906,1749651039792,-500.0,0.00019798,2]
[365396909,1749651039801,-500.0,0.00019798,2]
[365396912,1749651039811,-400.06843878,0.00019798,2]
[365396915,1749651039820,-228.68606469,0.00019798,2]
[365396919,1749651039829,-500.0,0.00019798,2]
[365396922,1749651039837,-500.0,0.00019798,2]
[365396926,1749651039847,-500.0,0.00019798,2]
[365396930,1749651039858,-500.0,0.00019798,2]
[365396933,1749651039867,-500.0,0.00019798,2]
[365396936,1749651039877,-1000.0,0.000198,2]
[365396938,1749651039886,-5910.29,0.000198,2]
[365396941,1749651039895,-1000.0,0.000198,2]
[365396944,1749651039905,-1000.0,0.000198,2]
[365396946,1749651039914,-1000.0,0.000198,2]
[365396949,1749651039923,-1000.0,0.000198,2]
[365396952,1749651039932,-1000.0,0.000198,2]
[365396955,1749651039942,-171.07983861,0.00019811,2]
[365396958,1749651039951,-10671.70059322,0.00019816,2]
[365396961,1749651039962,-899.227,0.00019822,2]
[365396964,1749651039971,-175.38629093,0.00019822,2]
[365396967,1749651039981,-17754.24601185,0.00019831,2]
[365396970,1749651039991,-17754.24601182,0.00019839,2]
[365396973,1749651040001,-500.0,0.0001984,2]
[365396976,1749651040018,-200.0,0.0001984,2]
[365396979,1749651040038,-171.07983861,0.00019841,2]
[365396981,1749651040056,-17754.24601182,0.00019846,2]
[365396984,1749651040066,-514.60909226,0.00019849,2]
[365396987,1749651040076,-17754.24601182,0.00019854,2]
[365396990,1749651040087,-10671.70059322,0.00019858,2]
[365396993,1749651040097,-17754.24601182,0.00019862,2]
[365396996,1749651040106,-17754.24601182,0.00019869,2]
[365396999,1749651040115,-171.07983861,0.0001987,2]
[365397002,1749651040125,-874.82454335,0.00019872,2]
[365397005,1749651040134,-500.0,0.00019873,2]
[365397008,1749651040143,-17754.24601182,0.00019877,2]
[365397010,1749651040153,-5800.0,0.00019883,2]
[365397013,1749651040163,-17754.24601182,0.00019885,2]
[365397016,1749651040173,-5000.0,0.00019886,2]
[365397019,1749651040182,-5800.0,0.00019892,2]
[365397022,1749651040192,-17754.24601182,0.00019892,2]
[365397025,1749651040202,-874.82454335,0.00019894,2]
[365397028,1749651040213,-170.48542706,0.00019899,2]
[365397031,1749651040223,-170.48542704,0.00019899,2]
[365397034,1749651040232,-170.48542704,0.000199,2]
[365397037,1749651040242,-1570.41089238,0.000199,2]
[365397040,1749651040253,-5800.0,0.000199,2]
[365397043,1749651040262,-170.48542704,0.000199,2]
[365397046,1749651040272,-10671.70059322,0.000199,2]
[365397049,1749651040282,-167.54192093,0.000199,2]
[365397051,1749651040291,-1000.0,0.000199,2]
[365397053,1749651040301,-171.07983861,0.000199,2]
[365397055,1749651040309,-17754.24601182,0.000199,2]
[365397057,1749651040319,-794.67724524,0.000199,2]
[365397059,1749651040328,-1000.0,0.00019905,2]
[365397061,1749651040337,-1000.0,0.00019931,2]
[365397063,1749651040346,-514.60909226,0.00019933,2]
[365397066,1749651040356,-225.58660965,0.00019934,2]
[365397069,1749651040365,-150.0,0.00019943,2]
[365397072,1749651040374,-150.0,0.00019943,2]
[365397075,1749651040383,-150.0,0.00019943,2]
[365397078,1749651040392,-150.0,0.00019943,2]
[365397081,1749651040402,-150.0,0.00019943,2]
[365397084,1749651040411,-150.0,0.00019943,2]
[365397087,1749651040420,-150.0,0.00019943,2]
[365397088,1749651040430,-150.0,0.00019943,2]
[365397091,1749651040439,-150.0,0.00019943,2]
[365397095,1749651040448,-150.0,0.00019943,2]
[365397097,1749651040458,-150.0,0.00019943,2]
[365397100,1749651040468,-284.31191082,0.00019943,2]
[365397103,1749651040477,-150.0,0.00019943,2]
[365397106,1749651040486,-500.0,0.00019943,2]
[365397108,1749651040495,-150.0,0.00019943,2]
[365397111,1749651040505,-150.0,0.00019943,2]
[365397114,1749651040514,-150.0,0.00019943,2]
[365397118,1749651040524,-250.0,0.00019943,2]
[365397121,1749651040533,-150.0,0.00019943,2]
[365397123,1749651040546,-514.60909226,0.00019947,2]
[365397127,1749651040556,-168.0,0.00019967,2]
[365397129,1749651040566,-150.0,0.0001997,2]
[365397132,1749651040582,-150.0,0.0001997,2]
[365397135,1749651040592,-150.0,0.0001997,2]
[365397138,1749651040604,-150.0,0.0001997,2]
[365397141,1749651040613,-150.0,0.0001997,2]
[365397144,1749651040623,-150.0,0.0001997,2]
[365397147,1749651040632,-150.0,0.0001997,2]
[365397150,1749651040641,-150.0,0.0001997,2]
[365397154,1749651040650,-500.0,0.0001997,2]
[365397157,1749651040659,-150.0,0.0001997,2]
[365397160,1749651040668,-200.0,0.0001997,2]
[365397163,1749651040677,-150.0,0.00019971,2]
[365397166,1749651040686,-10640.0,0.00019973,2]
[365397169,1749651040695,-500.0,0.00019973,2]
[365397172,1749651040704,-500.0,0.00019973,2]
[365397175,1749651040715,-500.0,0.00019973,2]
[365397177,1749651040724,-159.94501383,0.00019973,2]
[365397180,1749651040734,-159.94481155,0.00019973,2]
[365397183,1749651040743,-500.0,0.00019973,2]
[365397186,1749651040752,-500.0,0.00019973,2]
[365397189,1749651040762,-371.60868338,0.00019973,2]
[365397192,1749651040771,-535.46330658,0.00019973,2]
[365397195,1749651040781,-500.0,0.00019973,2]
[365397197,1749651040791,-500.0,0.00019973,2]
[365397200,1749651040800,-500.0,0.00019973,2]
[365397203,1749651040810,-500.0,0.00019973,2]
[365397206,1749651040820,-500.0,0.00019973,2]
[365397209,1749651040830,-500.0,0.00019973,2]
[365397212,1749651040839,-500.0,0.00019973,2]
[365397215,1749651040848,-498.89447705,0.00019973,2]
[365397218,1749651040858,-500.0,0.00019973,2]
[365397220,1749651040867,-500.0,0.00019973,2]
[365397223,1749651040876,-500.0,0.00019973,2]
[365397226,1749651040885,-874.82454335,0.00019973,2]
[365397229,1749651040895,-200.0,0.00019975,2]
[365397232,1749651040904,-151.62,0.00019986,2]
[365397235,1749651040914,-239.4756992,0.00019986,2]
[365397238,1749651040923,-222.5538003,0.00019986,2]
[365397241,1749651040933,-205.6319013,0.00019986,2]
[365397244,1749651040942,-188.7100024,0.00019986,2]
[365397270,1749651041072,-171.7881035,0.00019986,2]
[365397274,1749651041083,-2489.2870241,0.00019986,2]
[365397277,1749651041094,-2317.0581674,0.00019986,2]
[365397280,1749651041103,-2144.8293108,0.00019986,2]
[365397283,1749651041113,-1972.6004541,0.00019986,2]
[365397286,1749651041122,-1800.3715974,0.00019986,2]
[365397289,1749651041131,-7567.8807493,0.00019986,2]
[365397292,1749651041140,-7055.9750752,0.00019986,2]
[365397294,1749651041150,-6544.0694011,0.00019986,2]
[365397296,1749651041160,-6032.163727,0.00019986,2]
[365397298,1749651041169,-5520.258053,0.00019986,2]
[365397300,1749651041178,-72107.3277032,0.00019986,2]
[365397302,1749651041187,-61578.7703422,0.00019986,2]
[365397304,1749651041196,-51050.2129811,0.00019986,2]
[365397306,1749651041205,-40521.65562,0.00019986,2]
[365397309,1749651041216,-29993.098259,0.00019986,2]
[365397312,1749651041225,-151.62,0.0001999,2]
[365397315,1749651041234,-151.62,0.0001999,2]
[365397318,1749651041244,-201.54779067,0.0001999,2]
[365397321,1749651041253,-151.62,0.0001999,2]
[365397324,1749651041263,-151.62,0.0001999,2]
[365397327,1749651041272,-151.62,0.0001999,2]
[365397330,1749651041281,-151.62,0.0001999,2]
[365397333,1749651041290,-151.62,0.0001999,2]
[365397336,1749651041300,-151.62,0.0001999,2]
[365397339,1749651041309,-151.62,0.0001999,2]
[365397342,1749651041319,-151.62,0.0001999,2]
[365397345,1749651041329,-151.62,0.0001999,2]
[365397348,1749651041337,-151.62,0.0001999,2]
[365397351,1749651041346,-151.62,0.0001999,2]
[365397354,1749651041357,-151.62,0.0001999,2]
[365397357,1749651041366,-151.62,0.0001999,2]
[365397360,1749651041376,-201.54779067,0.0001999,2]
[365397363,1749651041385,-256.3975981,0.00019996,2]
[365397366,1749651041393,-2661.5158808,0.00019996,2]
[365397369,1749651041402,-8079.7864234,0.00019996,2]
[365397372,1749651041412,-22168.66824803,0.00019996,2]
[365397376,1749651041427,-60467.21681627,0.00019996,2]
[365397379,1749651041436,-200.0,0.00019998,2]
[365397382,1749651041445,-150.0,0.00019998,2]
[365397385,1749651041454,-150.0,0.00019998,2]
[365397388,1749651041463,-500.0,0.00019998,2]
[365397391,1749651041473,-150.0,0.00019998,2]
[365397394,1749651041481,-666.0,0.00019999,2]
[365397397,1749651041491,-300.0,0.00019999,2]
[365397400,1749651041500,-300.0,0.00019999,2]
[365397403,1749651041509,-1000.0,0.00019999,2]
[365397406,1749651041518,-1000.0,0.00019999,2]
[365397409,1749651041527,-200.0,0.00019999,2]
[365397412,1749651041537,-52586.54902161,0.00019999,2]
[365397415,1749651041546,-1000.0,0.00019999,2]
[365397417,1749651041555,-1000.0,0.00019999,2]
[365397420,1749651041564,-592.79221909,0.00019999,2]
[365397423,1749651041573,-1000.0,0.00019999,2]
[365397425,1749651041583,-500.0,0.00019999,2]
[365397428,1749651041592,-150.0,0.00019999,2]
[365397431,1749651041601,-217.83200328,0.0002,2]
[365397435,1749651041611,-683585.93364323,0.0002,3]
[365397437,1749651041620,-22485.70429105,0.0002,3]
[365397440,1749651041629,-3014573.18869785,0.0002,2]
[365397443,1749651041640,-109800.0,0.0002,2]
[365397448,1749651041655,-715.89999,0.0002,2]
[365397457,1749651041694,-691862.59775436,0.0002,2]
[365397460,1749651041705,-3182.78029,0.0002,2]
[365397464,1749651041718,-1439.77724344,0.0002,2]
[365397468,1749651041729,-1671.5480584,0.0002,2]
[365397471,1749651041745,-331.07,0.0002,2]
[365397694,1749651042993,-36273.432,0.0002,2]
[365397701,1749651043051,-330950.57404939,0.0002,2]
[365397709,1749651043110,-1666.25736656,0.0002,2]
[365397713,1749651043121,-354.15737609,0.0002,2]
[365397982,1749651045730,-162.66484013,0.000199,2]
[365397984,1749651045740,-30305.50225902,0.0002,2]
[365397986,1749651045751,-4328.8,0.0002,2]
[365397991,1749651045788,-3313.9921522,0.0002,2]
[365398010,1749651045961,-664.95,0.0002,2]
[365398021,1749651046141,-11143.16,0.0002,2]
[365398770,1749651251917,206.0,0.00016741,2]
[365398771,1749651389338,152.0,0.00016822,3]
[365398773,1749651684194,-206.0,0.00017233,2]
[365398774,1749651684216,-3423.424943,0.0001805,2]
[365398775,1749651715514,1218.74,0.00016511,2]
[365398777,1749651852165,5000.0,0.000181,2]
[365398778,1749651862171,5000.0,0.000181,2]
[365398779,1749651879461,551.835057,0.00017,2]
[365398780,1749651879486,4448.164943,0.00017,2]
[365398781,1749651906441,5000.0,0.00017,2]
[365398783,1749651971879,292.38,0.00013699,2]
[365398784,1749651972041,206.0,0.00016233,2]
[365398786,1749652043127,-206.0,0.00017742,4]
[365398787,1749652043148,-628.89391332,0.0001798,2]
[365398788,1749652043169,-250.0,0.00018066,2]
[365398789,1749652043190,-150.0,0.00018152,2]
[365398790,1749652043211,-82.49966958,0.00018201,2]
[365398791,1749652048109,-67.50033042,0.00018201,2]
[365398792,1749652048131,-1200.0,0.00018232,2]
[365398793,1749652048151,-300.0,0.00018232,2]
[365398794,1749652048174,-300.0,0.00018232,2]
[365398795,1749652048196,-302.67,0.00018233,2]
[365398796,1749652048219,-301.65,0.00018233,2]
[365398797,1749652048242,-300.24,0.00018233,2]
[365398798,1749652048270,-302.21,0.00018233,2]
[365398799,1749652048293,-301.75,0.00018233,2]
[365398800,1749652048323,-301.01,0.00018233,2]
[365398801,1749652048348,-302.99,0.00018233,2]
[365398802,1749652048371,-301.05,0.00018233,2]
[365398803,1749652048392,-302.92,0.00018233,2]
[365398804,1749652048419,-302.24,0.00018233,2]
[365398805,1749652048442,-301.89,0.00018233,2]
[365398806,1749652048464,-304.72,0.00018233,2]
[365398807,1749652048487,-497.28,0.00018233,2]
[365398808,1749652048511,-156.61,0.00018233,2]
[365398809,1749652048531,-301.65,0.00018233,2]
[365398810,1749652048552,-301.9,0.00018233,2]
[365398811,1749652048573,-304.65,0.00018233,2]
[365398812,1749652048594,-303.43,0.00018233,2]
[365398813,1749652048614,-303.62,0.00018234,2]
[365398814,1749652048635,-218.71042763,0.00018234,2]
[365398815,1749652051573,512.14988324,0.00016164,2]
[365398816,1749652075731,500.0,0.00016164,2]
[365398817,1749652108926,303.10456426,0.00016164,2]
[365398818,1749652127043,400.0,0.0002,20]
[365398843,1749652231971,-180.7218676,0.00017899,2]
[365398844,1749652231980,-296.0160508,0.00017998,2]
[365398845,1749652231991,-903.9839492,0.00017998,2]
[365398846,1749652231999,-299.6,0.00017999,2]
[365398847,1749652232009,-500.0,0.00017999,2]
[365398848,1749652232018,-500.0,0.00017999,2]
[365398849,1749652232027,-500.0,0.00017999,2]
[365398850,1749652232036,-500.0,0.00017999,2]
[365398851,1749652232045,-500.0,0.00017999,2]
[365398852,1749652232054,-500.0,0.00017999,2]
[365398853,1749652232063,-500.0,0.00017999,2]
[365398854,1749652232072,-500.0,0.00017999,2]
[365398855,1749652232082,-500.0,0.00017999,2]
[365398856,1749652232091,-500.0,0.00017999,2]
[365398857,1749652232100,-433.04159119,0.00017999,2]
[365398858,1749652232110,-500.0,0.00017999,2]
[365398859,1749652232119,-500.0,0.00017999,2]
[365398860,1749652232130,-480.9687423,0.00017999,2]
[365398861,1749652232139,-500.0,0.00017999,2]
[365398862,1749652232149,-500.0,0.00017999,2]
[365398863,1749652232159,-423.14169324,0.00017999,2]
[365398864,1749652232168,-152.7238077,0.00017999,2]
[365398865,1749652232177,-500.0,0.00017999,2]
[365398866,1749652232187,-417.14126237,0.00017999,2]
[365398867,1749652232196,-500.0,0.00017999,2]
[365398868,1749652232206,-108.001954,0.00017999,2]
[365398869,1749652232217,-391.998046,0.00017999,2]
[365398870,1749652232227,-413.01597433,0.00017999,2]
[365398871,1749652232238,-86.98402567,0.00017999,2]
[365398872,1749652232247,-450.19247635,0.00017999,2]
[365398873,1749652232258,-49.80752365,0.00017999,2]
[365398874,1749652232268,-500.0,0.00017999,2]
[365398875,1749652232277,-500.0,0.00017999,2]
[365398876,1749652232287,-500.0,0.00017999,2]
[365398877,1749652232296,-486.78957903,0.00017999,2]
[365398878,1749652232307,-13.21042097,0.00017999,2]
[365398879,1749652232317,-500.0,0.00017999,2]
[365398880,1749652232327,-500.0,0.00017999,2]
[365398881,1749652232336,-500.0,0.00017999,2]
[365398882,1749652232346,-500.0,0.00017999,2]
[365398883,1749652232355,-500.0,0.00017999,2]
[365398884,1749652232366,-162.20675599,0.00017999,2]
[365398885,1749652232381,-500.0,0.00017999,2]
[365398886,1749652232390,-500.0,0.00017999,2]
[365398887,1749652232403,-500.0,0.00017999,2]
[365398888,1749652232413,-500.0,0.00017999,2]
[365398889,1749652232423,-500.0,0.00017999,2]
[365398890,1749652232432,-500.0,0.00017999,2]
[365398891,1749652232443,-500.0,0.00017999,2]
[365398892,1749652232452,-500.0,0.00017999,2]
[365398893,1749652232462,-500.0,0.00017999,2]
[365398894,1749652232471,-500.0,0.00017999,2]
[365398895,1749652232482,-14138.37648725,0.00018,2]
[365398896,1749652232492,-42000.0,0.00018,2]
[365398897,1749652232511,-83.95957237,0.00018234,2]
[365398900,1749652232521,-302.83,0.00018241,2]
[365398902,1749652232531,-304.33,0.00018241,2]
[365398904,1749652232540,-303.29,0.00018273,2]
[365398905,1749652232549,-2557.76,0.00018288,2]
[365398908,1749652232559,-725.02,0.00018368,2]
[365398910,1749652232568,-502.93,0.00018405,2]
[365398912,1749652232578,-483.98425087,0.00018405,2]
[365398914,1749652232591,-20.52574913,0.00018405,2]
[365398916,1749652232600,-507.06,0.00018405,2]
[365398918,1749652232609,-303.77,0.00018405,2]
[365398921,1749652232619,-303.48,0.00018405,2]
[365398924,1749652232628,-150.0,0.00018414,2]
[365398927,1749652232638,-1486.25297731,0.00018423,2]
[365398931,1749652232649,-5608.98433001,0.00018423,2]
[365398934,1749652232662,-2502.27926151,0.00018423,2]
[365398937,1749652232674,-4495.45522794,0.00018423,2]
[365398948,1749652237891,-9807.02820323,0.00018423,2]
[365398950,1749652237901,-150.0,0.00018423,7]
[365398951,1749652237914,-979.12,0.00018427,2]
[365398953,1749652237923,-1000.0,0.00018439,2]
[365398955,1749652237932,-250.0,0.00018583,2]
[365398957,1749652237942,-283.42,0.00018601,2]
[365398958,1749652237951,-666.0,0.00018693,2]
[365398959,1749652237960,-187.37,0.00018715,2]
[365398960,1749652237970,-11333.23,0.00018715,2]
[365398961,1749652237979,-1218.74,0.00018775,2]
[365398962,1749652237988,-453.71439949,0.00018871,2]
[365398963,1749652237999,-986.74205553,0.00018871,2]
[365398964,1749652238011,-5027.28354498,0.00018871,2]
[365398965,1749652238020,-294.93542979,0.000189,2]
[365398966,1749652238029,-302.35,0.00018926,2]
[365398967,1749652238039,-507.46,0.00018926,2]
[365398968,1749652238048,-300.67,0.00018926,2]
[365398969,1749652238057,-502.16,0.00018926,2]
[365398970,1749652238067,-491.27,0.00018926,2]
[365398971,1749652238076,-496.8,0.00018926,2]
[365398972,1749652238085,-303.19,0.00018926,2]
[365398973,1749652238094,-305.6,0.00018926,2]
[365398974,1749652238104,-302.28,0.00018926,2]
[365398975,1749652238114,-300.57,0.00018926,2]
[365398976,1749652238123,-1957.856,0.0001893,2]
[365398977,1749652238133,-151.0,0.0001893,2]
[365398978,1749652238143,-151.0,0.0001893,2]
[365398979,1749652238153,-151.0,0.0001893,2]
[365398980,1749652238163,-668.65185757,0.0001893,2]
[365398981,1749652238173,-750.0,0.0001893,2]
[365398982,1749652238183,-750.0,0.0001893,2]
[365398983,1749652238192,-750.0,0.0001893,2]
[365398984,1749652238202,-750.0,0.0001893,2]
[365398985,1749652238212,-500.0,0.0001893,2]
[365398986,1749652238222,-500.0,0.0001893,2]
[365398987,1749652238231,-750.0,0.0001893,2]
[365398988,1749652238241,-500.0,0.0001893,2]
[365398989,1749652238250,-168.92946527,0.0001893,2]
[365398990,1749652238262,-307.99738865,0.0001893,2]
[365398991,1749652238369,-23.07314608,0.0001893,2]
[365398992,1749652238378,-395.488016,0.0001893,2]
[365398993,1749652238390,-104.511984,0.0001893,2]
[365398994,1749652238401,-750.0,0.0001893,2]
[365398995,1749652238412,-500.0,0.0001893,2]
[365398996,1749652238422,-500.0,0.0001893,2]
[365398997,1749652238431,-750.0,0.0001893,2]
[365398998,1749652238441,-500.0,0.0001893,2]
[365398999,1749652238451,-500.0,0.0001893,2]
[365399000,1749652238460,-750.0,0.0001893,2]
[365399001,1749652238470,-500.0,0.0001893,2]
[365399002,1749652238480,-353.08683043,0.0001893,2]
[365399003,1749652238492,-146.91316957,0.0001893,2]
[365399004,1749652238501,-362.93583043,0.0001893,2]
[365399005,1749652238512,-387.06416957,0.0001893,2]
[365399006,1749652238521,-500.0,0.0001893,2]
[365399007,1749652238530,-500.0,0.0001893,2]
[365399008,1749652238540,-750.0,0.0001893,2]
[365399009,1749652238549,-66.93583043,0.0001893,2]
[365399010,1749652238561,-433.06416957,0.0001893,2]
[365399011,1749652238570,-500.0,0.0001893,2]
[365399012,1749652238579,-399.33892291,0.0001893,2]
[365399013,1749652238589,-500.0,0.0001893,2]
[365399014,1749652238598,-500.0,0.0001893,2]
[365399015,1749652238608,-491.40660881,0.0001893,2]
[365399016,1749652238619,-8.59339119,0.0001893,2]
[365399017,1749652238629,-500.0,0.0001893,2]
[365399018,1749652238638,-500.0,0.0001893,2]
[365399019,1749652238648,-500.0,0.0001893,2]
[365399020,1749652238657,-500.0,0.0001893,2]
[365399021,1749652238670,-500.0,0.0001893,2]
[365399022,1749652238679,-500.0,0.0001893,2]
[365399024,1749652238689,-244.64199461,0.0001893,2]
[365399026,1749652238699,-500.0,0.0001893,2]
[365399027,1749652238709,-621.26511227,0.0001893,2]
[365399028,1749652238718,-300.0,0.0001893,2]
[365399029,1749652238728,-300.0,0.0001893,2]
[365399030,1749652238738,-300.0,0.0001893,2]
[365399031,1749652238747,-300.0,0.0001893,2]
[365399032,1749652238758,-207.4,0.0001893,2]
[365399034,1749652238767,-165.73,0.00018949,2]
[365399036,1749652238776,-2030.296672,0.00018985,2]
[365399038,1749652238785,-250.0,0.00019,2]
[365399040,1749652238794,-3519.40010946,0.00019,2]
[365399041,1749652238804,-1034.50550239,0.00019001,2]
[365399043,1749652238813,-1034.5055024,0.00019001,2]
[365399045,1749652238822,-294.93542977,0.00019003,2]
[365399047,1749652238831,-289.26525279,0.0001904,2]
[365399049,1749652238841,-689.68693525,0.00019078,2]
[365399051,1749652238850,-617.5985,0.00019078,2]
[365399071,1749652239026,-294.93542977,0.00019107,2]
[365399073,1749652239036,-942.41676759,0.00019164,2]
[365399076,1749652239047,-500.0,0.00019178,2]
[365399078,1749652239056,-500.0,0.00019178,2]
[365399080,1749652239066,-344.63,0.00019178,2]
[365399082,1749652239075,-500.0,0.00019178,2]
[365399084,1749652239085,-500.0,0.00019178,2]
[365399086,1749652239095,-500.0,0.00019178,2]
[365399088,1749652239104,-500.0,0.00019178,2]
[365399090,1749652239113,-500.0,0.00019178,2]
[365399092,1749652239123,-500.0,0.00019178,2]
[365399094,1749652239132,-500.0,0.00019178,2]
[365399096,1749652239144,-500.0,0.00019178,2]
[365399098,1749652239153,-500.0,0.00019178,2]
[365399100,1749652239167,-500.0,0.00019178,2]
[365399102,1749652239176,-500.0,0.00019178,2]
[365399104,1749652239185,-500.0,0.00019178,2]
[365399106,1749652239195,-500.0,0.00019178,2]
[365399108,1749652239204,-500.0,0.00019178,2]
[365399110,1749652239213,-500.0,0.00019178,2]
[365399112,1749652239223,-500.0,0.00019178,2]
[365399114,1749652239232,-500.0,0.00019178,2]
[365399116,1749652239242,-500.0,0.00019178,2]
[365399117,1749652239251,-54.72917104,0.00019178,2]
[365399120,1749652239264,-445.27082896,0.00019178,2]
[365399122,1749652239273,-94.09005036,0.00019178,2]
[365399124,1749652239285,-405.90994964,0.00019178,2]
[365399126,1749652239294,-500.0,0.00019178,2]
[365399128,1749652239303,-258.59006036,0.00019178,2]
[365399130,1749652239315,-241.40993964,0.00019178,2]
[365399132,1749652239325,-500.0,0.00019178,2]
[365399134,1749652239335,-500.0,0.00019178,2]
[365399136,1749652239344,-500.0,0.00019178,2]
[365399138,1749652239354,-500.0,0.00019178,2]
[365399141,1749652239363,-500.0,0.00019178,2]
[365399143,1749652239373,-500.0,0.00019178,2]
[365399144,1749652239383,-500.0,0.00019178,2]
[365399147,1749652239392,-500.0,0.00019178,2]
[365399149,1749652239404,-500.0,0.00019178,2]
[365399151,1749652239416,-500.0,0.00019178,2]
[365399152,1749652239425,-500.0,0.00019178,2]
[365399155,1749652239435,-500.0,0.00019178,2]
[365399157,1749652239446,-500.0,0.00019178,2]
[365399158,1749652239455,-182.81689162,0.00019178,2]
[365399160,1749652239464,-500.0,0.00019178,2]
[365399162,1749652239475,-500.0,0.00019178,2]
[365399165,1749652239484,-500.0,0.00019178,2]
[365399167,1749652239494,-500.0,0.00019178,2]
[365399168,1749652239504,-500.0,0.00019178,2]
[365399170,1749652239513,-500.0,0.00019178,2]
[365399172,1749652239523,-500.0,0.00019178,2]
[365399174,1749652239532,-500.0,0.00019178,2]
[365399176,1749652239541,-500.0,0.00019178,2]
[365399178,1749652239550,-500.0,0.00019178,2]
[365399180,1749652239559,-500.0,0.00019178,2]
[365399182,1749652239568,-500.0,0.00019178,2]
[365399184,1749652239577,-500.0,0.00019178,2]
[365399186,1749652239586,-500.0,0.00019178,2]
[365399188,1749652239595,-500.0,0.00019178,2]
[365399190,1749652239604,-500.0,0.00019178,2]
[365399192,1749652239613,-500.0,0.00019178,2]
[365399194,1749652239623,-500.0,0.00019178,2]
[365399196,1749652239632,-500.0,0.00019178,2]
[365399198,1749652239641,-500.0,0.00019178,2]
[365399200,1749652239650,-500.0,0.00019178,2]
[365399202,1749652239660,-500.0,0.00019178,2]
[365399204,1749652239672,-500.0,0.00019178,2]
[365399206,1749652239681,-151.0,0.00019178,2]
[365399208,1749652239690,-163.45,0.00019178,2]
[365399210,1749652239699,-294.93542977,0.0001921,2]
[365399212,1749652239709,-206.0,0.00019251,6]